fUST/lending_fUST_20260113
["ID","MTS","AMOUNT","RATE_DAILY","PERIOD"]
[401494457,1768269041401,-1000.0,0.00013821,2]
[401494459,1768269041410,-1000.0,0.00013821,2]
[401494461,1768269041420,-1000.0,0.00013821,2]
[401494463,1768269041430,-1000.0,0.00013821,2]
[401494465,1768269041440,-681.0016986,0.00013821,2]
[401494467,1768269041449,-1000.0,0.00013821,2]
[401494470,1768269041459,-1000.0,0.00013821,2]
[401494472,1768269041468,-1001.09633075,0.00013821,2]
[401494473,1768269041477,-1000.0,0.00013823,2]
[401494475,1768269041487,-155.79052665,0.00013836,2]
[401494477,1768269041496,-294.27582937,0.00013973,2]
[401494479,1768269041506,-7145.02897959,0.00014,2]
[401494482,1768269041516,-600.0,0.00014221,2]
[401494483,1768269041525,-322.6303654,0.00014247,2]
[401494486,1768269041539,-1000.27165154,0.00014247,2]
[401494488,1768269041548,-1000.0,0.00014247,2]
[401494490,1768269041558,-1000.0,0.00014247,2]
[401494492,1768269041568,-1000.0,0.00014247,2]
[401494494,1768269041577,-1000.49621073,0.00014247,2]
[401494496,1768269041586,-876.1803398,0.00014247,2]
[401494498,1768269041595,-500.83741654,0.00014247,2]
[401494500,1768269041605,-1000.92415613,0.00014247,2]
[401494502,1768269041615,-1000.90817033,0.00014247,2]
[401494504,1768269041625,-1000.0,0.00014247,2]
[401494506,1768269041635,-1000.0,0.00014247,2]
[401494508,1768269041644,-1081.71283585,0.00014247,2]
[401494510,1768269041654,-853.4021361,0.00014247,2]
[401494512,1768269041663,-1000.0,0.00014247,2]
[401494514,1768269041673,-1000.0,0.00014247,2]
[401494516,1768269041683,-1002.91382206,0.00014247,2]
[401494518,1768269041691,-1000.0,0.00014247,2]
[401494520,1768269041701,-500.93038909,0.00014247,2]
[401494522,1768269041710,-1000.0,0.00014247,2]
[401494524,1768269041719,-1000.0,0.00014247,2]
[401494526,1768269041728,-250.18055217,0.00014247,2]
[401494527,1768269041738,-1000.0,0.00014247,2]
[401494529,1768269041759,-1000.0,0.00014247,2]
[401494531,1768269041778,-1018.46469469,0.00014247,2]
[401494533,1768269041799,-1003.11856965,0.00014247,2]
[401494535,1768269041814,-1000.92768077,0.00014247,2]
[401494537,1768269041824,-1000.0,0.00014247,2]
[401494539,1768269041834,-501.93084726,0.00014247,2]
[401494542,1768269041844,-276.84131836,0.00014247,2]
[401494543,1768269041853,-1000.0,0.00014247,2]
[401494546,1768269041865,-1000.0,0.00014247,2]
[401494548,1768269041874,-1000.0,0.00014247,2]
[401494550,1768269041883,-1000.0,0.00014247,2]
[401494552,1768269041892,-1000.0,0.00014247,2]
[401494553,1768269041901,-1000.0,0.00014247,2]
[401494555,1768269041910,-1000.0,0.00014247,2]
[401494557,1768269041919,-1000.0,0.00014247,2]
[401494559,1768269041928,-1000.0,0.00014247,2]
[401494561,1768269041938,-1000.0,0.00014247,2]
[401494563,1768269041947,-1000.0,0.00014247,2]
[401494565,1768269041957,-1000.0,0.00014247,2]
[401494567,1768269041966,-1014.96531126,0.00014247,2]
[401494569,1768269041976,-1000.0,0.00014247,2]
[401494571,1768269041988,-647.12625165,0.00014247,2]
[401494573,1768269041998,-1000.0,0.00014247,2]
[401494575,1768269042007,-1000.0,0.00014247,2]
[401494577,1768269042015,-1000.0,0.00014247,2]
[401494579,1768269042025,-1000.0,0.00014247,2]
[401494581,1768269042035,-1138.93332582,0.00014247,2]
[401494583,1768269042044,-1000.0,0.00014247,2]
[401494585,1768269042054,-1000.0,0.00014247,2]
[401494587,1768269042063,-1000.0,0.00014247,2]
[401494589,1768269042072,-346.38117913,0.00014247,2]
[401494591,1768269042082,-1000.0,0.00014247,2]
[401494593,1768269042091,-1006.57632602,0.00014247,2]
[401494595,1768269042100,-1000.0,0.00014247,2]
[401494597,1768269042110,-407.08085323,0.00014285,2]
[401494599,1768269042119,-1181.37091183,0.00014368,2]
[401494601,1768269042128,-1500.0,0.00014368,2]
[401494603,1768269042137,-1500.0,0.00014368,2]
[401494605,1768269042147,-1500.0,0.00014368,2]
[401494607,1768269042156,-501.53674303,0.00014368,2]
[401494609,1768269042165,-1121.35319303,0.00014368,2]
[401494611,1768269042174,-504.59320272,0.00014368,2]
[401494613,1768269042184,-1500.0,0.00014368,2]
[401494615,1768269042193,-1604.29070362,0.00014368,2]
[401494617,1768269042202,-1500.0,0.00014368,2]
[401494619,1768269042212,-1500.0,0.00014368,2]
[401494621,1768269042222,-1500.0,0.00014368,2]
[401494624,1768269042231,-1500.0,0.00014368,2]
[401494625,1768269042240,-764.84363887,0.00014368,2]
[401494627,1768269042249,-501.24947026,0.00014368,2]
[401494629,1768269042259,-1501.96202407,0.00014368,2]
[401494631,1768269042268,-1500.0,0.00014368,2]
[401494633,1768269042278,-424.06874761,0.00014368,2]
[401494635,1768269042288,-1500.0,0.00014368,2]
[401494638,1768269042297,-1001.10373896,0.00014368,2]
[401494640,1768269042307,-1500.0,0.00014368,2]
[401494642,1768269042317,-1500.0,0.00014368,2]
[401494644,1768269042326,-1500.0,0.00014368,2]
[401494646,1768269042336,-1500.0,0.00014368,2]
[401494648,1768269042345,-1500.0,0.00014368,2]
[401494650,1768269042355,-1503.82096897,0.00014368,2]
[401494652,1768269042364,-1500.0,0.00014368,2]
[401494654,1768269042374,-1001.124693,0.00014368,2]
[401494656,1768269042383,-1500.0,0.00014368,2]
[401494658,1768269042392,-5000.0,0.0001451,2]
[401494660,1768269042401,-500.0,0.00014563,2]
[401494662,1768269042411,-500.0,0.00014563,2]
[401494664,1768269042420,-500.0,0.00014563,2]
[401494666,1768269042431,-500.0,0.00014563,2]
[401494668,1768269042441,-500.0,0.00014563,2]
[401494670,1768269042450,-500.0,0.00014563,2]
[401494672,1768269042460,-500.0,0.00014563,2]
[401494674,1768269042469,-500.0,0.00014563,2]
[401494676,1768269042479,-500.0,0.00014563,2]
[401494678,1768269042489,-500.0,0.00014563,2]
[401494680,1768269042498,-500.0,0.00014563,2]
[401494681,1768269042507,-500.0,0.00014563,2]
[401494683,1768269042517,-367.92191618,0.00014563,2]
[401494686,1768269042526,-100000.0,0.0001459,2]
[401494688,1768269042536,-900.0,0.00014768,2]
[401494689,1768269042545,-1500.0,0.00014795,2]
[401494691,1768269042554,-675.8504307,0.00014795,2]
[401494693,1768269042564,-181.44158321,0.00014795,2]
[401494695,1768269042573,-1500.0,0.00014795,2]
[401494697,1768269042583,-1500.0,0.00014795,2]
[401494699,1768269042593,-501.12760759,0.00014795,2]
[401494701,1768269042602,-1500.0,0.00014795,2]
[401494703,1768269042611,-1501.38493876,0.00014795,2]
[401494705,1768269042620,-1500.0,0.00014795,2]
[401494707,1768269042630,-1000.76370703,0.00014795,2]
[401494709,1768269042639,-530.28509529,0.00014795,2]
[401494711,1768269042649,-1501.00555591,0.00014795,2]
[401494713,1768269042658,-500.76361488,0.00014795,2]
[401494715,1768269042671,-1122.15758895,0.00014795,2]
[401494717,1768269042680,-500.72224466,0.00014795,2]
[401494720,1768269042690,-1500.89243734,0.00014795,2]
[401494723,1768269042699,-500.93199732,0.00014795,2]
[401494725,1768269042708,-1500.0,0.00014795,2]
[401494727,1768269042718,-1002.6632099,0.00014795,2]
[401494729,1768269042727,-1500.0,0.00014795,2]
[401494731,1768269042737,-1507.04649373,0.00014795,2]
[401494734,1768269042747,-1501.63615745,0.00014795,2]
[401494735,1768269042756,-1001.171917,0.00014795,2]
[401494737,1768269042766,-1500.0,0.00014795,2]
[401494739,1768269042776,-1500.0,0.00014795,2]
[401494742,1768269042785,-965.26033505,0.00014795,2]
[401494744,1768269042795,-1501.37309074,0.00014795,2]
[401494747,1768269042805,-1501.05825586,0.00014795,2]
[401494749,1768269042815,-711.54421666,0.00014795,2]
[401494760,1768269042911,-1510.88603555,0.00014795,2]
[401494762,1768269042921,-1501.07329745,0.00014795,2]
[401494764,1768269042931,-1500.0,0.00014795,2]
[401494766,1768269042940,-1501.40641457,0.00014795,2]
[401494768,1768269042949,-1500.98173226,0.00014795,2]
[401494770,1768269042959,-151.56553663,0.000149,2]
[401494772,1768269042968,-151.56553662,0.000149,2]
[401494774,1768269042978,-2000.0,0.00014916,2]
[401494776,1768269042990,-2000.0,0.00014916,2]
[401494778,1768269043000,-501.00821416,0.00014916,2]
[401494780,1768269043009,-1468.56684157,0.00014916,2]
[401494782,1768269043019,-2000.0,0.00014916,2]
[401494784,1768269043030,-501.3821036,0.00014916,2]
[401494786,1768269043039,-2000.0,0.00014916,2]
[401494788,1768269043048,-155.72124395,0.00014916,2]
[401494790,1768269043057,-2000.0,0.00014916,2]
[401494792,1768269043067,-500.0,0.00014916,2]
[401494794,1768269043076,-2000.0,0.00014916,2]
[401494797,1768269043086,-2000.0,0.00014916,2]
[401494799,1768269043095,-2000.0,0.00014916,2]
[401494801,1768269043104,-1115.07532372,0.00014916,2]
[401494803,1768269043114,-2000.0,0.00014916,2]
[401494805,1768269043125,-2000.0,0.00014916,2]
[401494807,1768269043137,-2000.0,0.00014916,2]
[401494809,1768269043151,-163.0,0.00015,2]
[401494811,1768269043163,-1152.0,0.00015181,2]
[401494813,1768269043172,-1000.0,0.00015206,2]
[401494815,1768269043183,-244.0,0.00015206,2]
[401494817,1768269043192,-303.3619795,0.00015316,2]
[401494819,1768269043201,-1001.48921188,0.00015342,2]
[401494821,1768269043211,-1032.33423747,0.00015342,2]
[401494823,1768269043220,-1502.09397869,0.00015342,2]
[401494825,1768269043229,-1527.24664975,0.00015342,2]
[401494827,1768269043238,-502.76680069,0.00015342,2]
[401494829,1768269043248,-508.65480008,0.00015342,2]
[401494831,1768269043258,-506.46904603,0.00015342,2]
[401494833,1768269043268,-738.12965547,0.00015342,2]
[401494836,1768269043278,-1503.11478262,0.00015342,2]
[401494838,1768269043287,-2000.0,0.00015342,2]
[401494840,1768269043296,-1005.08827412,0.00015464,2]
[401494842,1768269043305,-376.21269073,0.00015464,2]
[401494844,1768269043315,-1003.32351431,0.00015464,2]
[401494846,1768269043325,-2500.0,0.00015464,2]
[401494848,1768269043334,-2500.0,0.00015464,2]
[401494850,1768269043344,-1003.70557583,0.00015464,2]
[401494852,1768269043353,-2025.97466783,0.00015464,2]
[401494854,1768269043362,-1003.04077884,0.00015464,2]
[401494855,1768269043371,-2500.0,0.00015464,2]
[401494857,1768269043380,-2500.0,0.00015464,2]
[401494859,1768269043390,-2500.0,0.00015464,2]
[401494861,1768269043400,-2500.0,0.0001589,2]
[401494864,1768269043411,-2004.76280293,0.00016012,2]
[401494866,1768269043422,-506.2119685,0.00016012,2]
[401494868,1768269043431,-3000.0,0.00016012,2]
[401494870,1768269043441,-3000.0,0.00016012,2]
[401494872,1768269043451,-3000.0,0.00016012,2]
[401494874,1768269043460,-460.95920145,0.00016285,2]
[401494876,1768269043470,-150.38216672,0.00016327,2]
[401494878,1768269043479,-150.91792764,0.00016327,2]
[401494880,1768269043489,-500.0,0.00016327,2]
[401494882,1768269043498,-500.0,0.00016327,2]
[401494884,1768269043507,-150.43817665,0.00016327,2]
[401494886,1768269043517,-500.0,0.00016438,2]
[401494888,1768269043526,-442.87297618,0.00016438,2]
[401494890,1768269043535,-500.0,0.00016438,2]
[401494892,1768269043544,-3000.0,0.00016438,2]
[401494894,1768269043553,-202.03227557,0.00016464,2]
[401494896,1768269043562,-500.0,0.00016464,2]
[401494898,1768269043571,-150.88562829,0.00016464,2]
[401494900,1768269043581,-208.46182822,0.00016464,2]
[401494902,1768269043590,-500.0,0.00016464,2]
[401494904,1768269043599,-229.07764705,0.00016521,7]
[401494905,1768269043610,-2511.02649148,0.0001656,2]
[401494906,1768269043619,-509.17780676,0.0001656,2]
[401494907,1768269043629,-1041.72224603,0.0001656,2]
[401494908,1768269043637,-1041.66666667,0.00016573,2]
[401494909,1768269043646,-250.90029669,0.00016601,2]
[401494910,1768269043655,-152.17413332,0.00016601,2]
[401494911,1768269043664,-500.0,0.00016601,2]
[401494912,1768269043673,-58524.677582,0.00016601,2]
[401494913,1768269043682,-1613.0,0.00016693,2]
[401494914,1768269043691,-1000.0,0.00016726,2]
[401494915,1768269043700,-492.0,0.00016726,2]
[401494916,1768269043709,-151.1185966,0.00016738,2]
[401494917,1768269043718,-450.0,0.00016738,2]
[401494918,1768269043727,-1025.21475413,0.00016986,2]
[401494919,1768269043735,-5042.42626027,0.00017412,2]
[401494920,1768269043744,-180.64778451,0.00017443,2]
[401494921,1768269043753,-216.47688675,0.00017477,2]
[401494922,1768269043763,-2398.4119403,0.00017477,2]
[401494923,1768269043772,-181.08010149,0.00017477,2]
[401494924,1768269043784,-187.78006525,0.00017477,2]
[401494925,1768269043792,-194.72792766,0.00017477,2]
[401494926,1768269043801,-201.93286099,0.00017477,2]
[401494927,1768269043810,-496.47127164,0.00017477,2]
[401494928,1768269043819,-209.40437684,0.00017477,2]
[401494929,1768269043828,-217.15233878,0.00017477,2]
[401494930,1768269043837,-225.18697532,0.00017477,2]
[401494931,1768269043846,-233.51889341,0.00017477,2]
[401494932,1768269043855,-242.15909246,0.00017477,2]
[401494933,1768269043864,-251.11897888,0.00017477,2]
[401494935,1768269043874,-260.4103811,0.00017477,2]
[401494937,1768269043883,-270.0455652,0.00017477,2]
[401494939,1768269043892,-280.03725112,0.00017477,2]
[401494941,1768269043901,-290.39862941,0.00017477,2]
[401494943,1768269043911,-301.1433787,0.00017477,2]
[401494945,1768269043920,-151.0,0.00017955,2]
[401494947,1768269043930,-2487.15318209,0.00018025,2]
[401494949,1768269043939,-514.84070869,0.00018025,2]
[401494951,1768269043948,-514.83754967,0.00018285,2]
[401494953,1768269043958,-728.0,0.0001835,2]
[401494955,1768269043968,-2258.0,0.00018355,2]
[401494957,1768269043980,-1000.0,0.00018399,2]
[401494959,1768269043989,-791.0,0.00018399,2]
[401494961,1768269043999,-151.0,0.00018461,2]
[401494963,1768269044007,-2579.17784983,0.00018573,2]
[401494965,1768269044017,-533.88981491,0.00018573,2]
[401494967,1768269044026,-728.0,0.0001892,2]
[401494969,1768269044036,-349.52413469,0.00018954,2]
[401494971,1768269044045,-151.0,0.00018966,2]
[401494973,1768269044055,-1000.0,0.00018988,2]
[401494975,1768269044065,-2674.60743027,0.00019121,2]
[401494977,1768269044074,-553.64373807,0.00019121,2]
[401494979,1768269044083,-728.0,0.00019158,2]
[401494981,1768269044093,-360.2,0.00019178,2]
[401494983,1768269044107,-3220.21,0.000192,2]
[401494985,1768269044116,-728.0,0.0001924,2]
[401494987,1768269044125,-160.67,0.000193,2]
[401494989,1768269044134,-156.68,0.000193,2]
[401494991,1768269044143,-17705.96,0.000193,2]
[401494993,1768269044152,-2812.60494797,0.00019457,2]
[401494995,1768269044161,-151.0,0.00019472,2]
[401494997,1768269044170,-179702.401634,0.00019472,2]
[401494999,1768269044179,-449464.9880424,0.000195,2]
[401495067,1768269044825,-151.0,0.000132,2]
[401495069,1768269044835,-151.0,0.000132,2]
[401495071,1768269044844,-151.0,0.000132,2]
[401495073,1768269044853,-151.0,0.000132,2]
[401495075,1768269044862,-151.0,0.000132,2]
[401495077,1768269044871,-151.0,0.000132,2]
[401495079,1768269044880,-151.0,0.000132,2]
[401495081,1768269044890,-250.0,0.00013908,2]
[401495083,1768269044899,-55572.40707215,0.000195,2]
[401495085,1768269044912,-3770.13721506,0.000195,2]
[401495153,1768269104648,648.52,0.00030136,120]
[401495154,1768269259370,1473.105957,0.00030137,120]
[401495156,1768269378752,500000.0,0.0003,120]
[401495157,1768269651495,-164.34,0.00011941,2]
[401495158,1768269651516,-588.0,0.00011941,2]
[401495159,1768269651538,-297.123398,0.0001197,2]
[401495160,1768269651558,-300.0,0.00011998,2]
[401495161,1768269651580,-300.0,0.00011998,2]
[401495162,1768269651600,-300.0,0.00011998,2]
[401495163,1768269651621,-1200.0,0.00011998,2]
[401495164,1768269651643,-500.0,0.00011998,2]
[401495165,1768269651664,-500.0,0.00011998,2]
[401495166,1768269651684,-500.0,0.00011998,2]
[401495167,1768269651704,-190.25235154,0.00011998,2]
[401495168,1768269651725,-500.0,0.00011998,2]
[401495169,1768269651748,-500.0,0.00011998,2]
[401495170,1768269651768,-500.0,0.00011998,2]
[401495171,1768269651788,-500.0,0.00011998,2]
[401495172,1768269651808,-500.0,0.00011998,2]
[401495173,1768269651830,-500.0,0.00011998,2]
[401495174,1768269651851,-500.0,0.00011998,2]
[401495175,1768269651872,-500.0,0.00011998,2]
[401495176,1768269651894,-500.0,0.00011998,2]
[401495177,1768269651917,-500.0,0.00011998,2]
[401495178,1768269651939,-500.0,0.00011998,2]
[401495179,1768269651959,-543.76660764,0.00011998,2]
[401495180,1768269652092,-492.03362162,0.00011998,2]
[401495181,1768269652115,-458.56417334,0.00011998,2]
[401495182,1768269652136,-500.0,0.00011998,2]
[401495183,1768269652158,-500.0,0.00011998,2]
[401495184,1768269652179,-500.0,0.00011998,2]
[401495185,1768269652201,-500.0,0.00011998,2]
[401495186,1768269652222,-500.0,0.00011998,2]
[401495187,1768269652247,-500.0,0.00011998,2]
[401495188,1768269652271,-500.0,0.00011998,2]
[401495189,1768269652294,-500.0,0.00011998,2]
[401495190,1768269652316,-500.0,0.00011998,2]
[401495191,1768269652336,-431.63135998,0.00011998,2]
[401495192,1768269652359,-500.0,0.00011998,2]
[401495193,1768269652380,-500.0,0.00011998,2]
[401495194,1768269652400,-500.0,0.00011998,2]
[401495195,1768269652421,-500.0,0.00011998,2]
[401495196,1768269652442,-500.0,0.00011998,2]
[401495197,1768269652462,-500.0,0.00011998,2]
[401495198,1768269652484,-500.0,0.00011998,2]
[401495199,1768269652505,-500.0,0.00011998,2]
[401495200,1768269652526,-540.32868554,0.00011998,2]
[401495201,1768269652548,-500.0,0.00011998,2]
[401495202,1768269652574,-500.0,0.00011998,2]
[401495203,1768269652598,-500.0,0.00011998,2]
[401495204,1768269652627,-500.0,0.00011998,2]
[401495205,1768269652661,-500.0,0.00011998,2]
[401495206,1768269652682,-500.0,0.00011998,2]
[401495207,1768269652703,-500.0,0.00011998,2]
[401495208,1768269652724,-500.0,0.00011998,2]
[401495209,1768269652745,-500.0,0.00011998,2]
[401495210,1768269652766,-500.0,0.00011998,2]
[401495211,1768269652787,-500.0,0.00011998,2]
[401495212,1768269652808,-500.0,0.00011998,2]
[401495213,1768269652828,-500.0,0.00011998,2]
[401495214,1768269652848,-500.0,0.00011998,2]
[401495215,1768269652869,-500.0,0.00011998,2]
[401495216,1768269652892,-500.0,0.00011998,2]
[401495217,1768269652914,-500.0,0.00011998,2]
[401495218,1768269652936,-500.0,0.00011998,2]
[401495219,1768269652959,-500.0,0.00011998,2]
[401495220,1768269652985,-500.0,0.00011998,2]
[401495221,1768269653006,-500.0,0.00011998,2]
[401495222,1768269653026,-500.0,0.00011998,2]
[401495223,1768269653045,-500.0,0.00011998,2]
[401495224,1768269653063,-500.0,0.00011998,2]
[401495225,1768269653083,-500.0,0.00011998,2]
[401495226,1768269653105,-500.0,0.00011998,2]
[401495227,1768269653125,-500.0,0.00011998,2]
[401495228,1768269653148,-500.0,0.00011998,2]
[401495229,1768269653170,-500.0,0.00011998,2]
[401495230,1768269653192,-500.0,0.00011998,2]
[401495231,1768269653213,-500.0,0.00011998,2]
[401495232,1768269653234,-500.0,0.00011998,2]
[401495233,1768269653257,-500.0,0.00011998,2]
[401495234,1768269653279,-500.0,0.00011998,2]
[401495235,1768269653301,-500.0,0.00011998,2]
[401495236,1768269653322,-500.0,0.00011998,2]
[401495237,1768269653343,-500.0,0.00011998,2]
[401495238,1768269653364,-500.0,0.00011998,2]
[401495239,1768269653384,-500.0,0.00011998,2]
[401495240,1768269653406,-500.0,0.00011998,2]
[401495241,1768269653428,-500.0,0.00011998,2]
[401495242,1768269653450,-500.0,0.00011998,2]
[401495243,1768269653471,-500.0,0.00011998,2]
[401495244,1768269653493,-399.80711616,0.00011998,2]
[401495245,1768269653514,-500.0,0.00011998,2]
[401495246,1768269653536,-500.0,0.00011998,2]
[401495247,1768269653558,-500.0,0.00011998,2]
[401495248,1768269653580,-500.0,0.00011998,2]
[401495249,1768269653602,-500.0,0.00011998,2]
[401495250,1768269653624,-500.0,0.00011998,2]
[401495251,1768269653647,-500.0,0.00011998,2]
[401495252,1768269653670,-500.0,0.00011998,2]
[401495253,1768269653693,-500.0,0.00011998,2]
[401495254,1768269653716,-500.0,0.00011998,2]
[401495255,1768269653737,-500.0,0.00011998,2]
[401495256,1768269653758,-500.0,0.00011998,2]
[401495257,1768269653780,-500.0,0.00011998,2]
[401495258,1768269653803,-500.0,0.00011998,2]
[401495259,1768269653825,-500.0,0.00011998,2]
[401495260,1768269653848,-500.0,0.00011998,2]
[401495261,1768269653870,-500.0,0.00011998,2]
[401495262,1768269653892,-500.0,0.00011998,2]
[401495263,1768269653920,-500.0,0.00011998,2]
[401495264,1768269653945,-500.0,0.00011998,2]
[401495265,1768269653970,-500.0,0.00011998,2]
[401495266,1768269653993,-500.0,0.00011998,2]
[401495267,1768269654015,-500.0,0.00011998,2]
[401495268,1768269654037,-500.0,0.00011998,2]
[401495269,1768269654059,-500.0,0.00011998,2]
[401495270,1768269654081,-500.0,0.00011998,2]
[401495271,1768269654105,-500.0,0.00011998,2]
[401495272,1768269654126,-500.0,0.00011998,2]
[401495273,1768269654241,-500.0,0.00011998,2]
[401495274,1768269654266,-500.0,0.00011998,2]
[401495275,1768269654289,-500.0,0.00011998,2]
[401495276,1768269654310,-50000.0,0.00011999,2]
[401495277,1768269654331,-189737.7898793,0.00012,2]
[401495278,1768269654351,-610.10261858,0.00012082,2]
[401495279,1768269654371,-610.10261854,0.00012087,2]
[401495280,1768269654390,-610.10261854,0.00012091,2]
[401495281,1768269654410,-610.10261854,0.00012096,2]
[401495282,1768269654429,-610.10261854,0.000121,2]
[401495283,1768269654451,-500.0,0.00012184,2]
[401495284,1768269654471,-500.0,0.00012184,2]
[401495285,1768269654492,-500.0,0.00012184,2]
[401495286,1768269654513,-154.48046931,0.00012184,2]
[401495287,1768269654534,-422.83591786,0.00012184,2]
[401495288,1768269654556,-500.0,0.00012184,2]
[401495289,1768269654577,-500.0,0.00012184,2]
[401495290,1768269654598,-500.0,0.00012184,2]
[401495291,1768269654619,-500.0,0.00012184,2]
[401495292,1768269654646,-500.0,0.00012184,2]
[401495293,1768269654670,-500.0,0.00012184,2]
[401495294,1768269654695,-500.0,0.00012184,2]
[401495295,1768269654718,-500.0,0.00012184,2]
[401495296,1768269654740,-600.0,0.00012184,2]
[401495297,1768269654762,-500.0,0.00012184,2]
[401495298,1768269654782,-204.12268949,0.00012184,2]
[401495299,1768269654804,-500.0,0.00012184,2]
[401495300,1768269654825,-500.0,0.00012184,2]
[401495301,1768269654848,-419.33934897,0.00012184,2]
[401495302,1768269654869,-500.0,0.00012184,2]
[401495303,1768269654893,-86205.07128851,0.00012185,2]
[401495323,1768269916308,500.0,0.00030136,120]
[401495324,1768269916556,415.52175904,0.00030136,120]
[401495326,1768270033381,47.20087977,0.00024875,110]
[401495327,1768270033408,173.33401291,0.00024875,110]
[401495328,1768270139583,255.88096864,0.00030136,120]
[401495378,1768270232409,-574.0,0.00010989,2]
[401495379,1768270232419,-275.19081186,0.00010989,2]
[401495380,1768270232430,-24.80918814,0.00010989,2]
[401495381,1768270232443,-151.0,0.000118,2]
[401495382,1768270232451,-297.16741318,0.00011849,2]
[401495383,1768270232461,-300.0,0.00011909,2]
[401495384,1768270232469,-300.0,0.00011909,2]
[401495385,1768270232479,-563.0,0.00011909,2]
[401495386,1768270232487,-36.80556948,0.0001191,2]
[401495387,1768270232498,-463.19443052,0.0001191,2]
[401495388,1768270232507,-500.0,0.0001191,2]
[401495389,1768270232517,-237.23930593,0.0001191,2]
[401495390,1768270232526,-500.0,0.0001191,2]
[401495391,1768270232535,-500.0,0.0001191,2]
[401495392,1768270232544,-500.0,0.0001195,2]
[401495393,1768270232552,-500.0,0.0001195,2]
[401495394,1768270232561,-500.0,0.0001195,2]
[401495395,1768270232570,-636.37346213,0.0001195,2]
[401495397,1768270232580,-297.36635196,0.0001195,2]
[401495399,1768270232589,-500.0,0.0001195,2]
[401495401,1768270232598,-500.0,0.0001195,2]
[401495403,1768270232607,-500.0,0.0001195,2]
[401495405,1768270232616,-500.0,0.0001195,2]
[401495407,1768270232626,-42328.20964508,0.00011951,2]
[401495411,1768270232652,-500.0,0.0001195,2]
[401495413,1768270232661,-119.84912104,0.0001195,2]
[401495972,1768270238276,-380.15087896,0.0001195,2]
[401495973,1768270238286,-500.0,0.0001195,2]
[401495975,1768270238296,-500.0,0.0001195,2]
[401495977,1768270238307,-500.0,0.0001195,2]
[401495979,1768270238318,-500.0,0.0001195,2]
[401495980,1768270238328,-957671.79035492,0.00011951,2]
[401495981,1768270238337,-500.0,0.00012047,2]
[401495982,1768270238347,-500.0,0.00012047,2]
[401495983,1768270238356,-500.0,0.00012047,2]
[401495984,1768270238365,-500.0,0.00012047,2]
[401495985,1768270238375,-263.89076576,0.00012047,2]
[401495986,1768270238385,-68287.3042354,0.00012051,2]
[401495987,1768270238395,-3408.7394741,0.00012051,2]
[401495988,1768270238404,-14508.9484606,0.00012051,2]
[401495989,1768270238414,-151.0,0.000121,2]
[401495990,1768270238424,-500.0,0.00012184,2]
[401495991,1768270238436,-153.70982773,0.00012184,2]
[401495992,1768270238446,-513.12655738,0.00012184,2]
[401495993,1768270238455,-515.33881049,0.00012184,2]
[401495994,1768270238465,-500.0,0.00012184,2]
[401495995,1768270238474,-151.92792732,0.00012184,2]
[401495996,1768270238484,-151.83334327,0.00012184,2]
[401495997,1768270238494,-215.14682625,0.00012184,2]
[401495998,1768270238506,-151.0,0.000122,2]
[401495999,1768270238515,-151.0,0.000122,2]
[401496000,1768270238525,-151.0,0.000122,2]
[401496001,1768270238535,-151.0,0.000122,2]
[401496002,1768270238545,-151.0,0.000122,2]
[401496003,1768270238555,-151.0,0.000122,2]
[401496004,1768270238565,-151.0,0.000122,2]